bitfinex-derivatives/quotes_BTCF0:USTF0_20251204
["timestamp","ask_amount","ask_price","bid_price","bid_amount"]
[1764874155334,0.0665049,92098.0,92097.0,0.05804]
[1764874157628,0.0665049,92098.0,92097.0,0.05904]
[1764874159930,0.0665049,92098.0,92097.0,0.02978]
[1764874160334,0.0665049,92098.0,92097.0,0.05904]
[1764874160930,0.0665049,92098.0,92097.0,0.05804]
[1764874163736,0.0108559,92094.0,92093.0,0.0108554]
[1764874164049,0.066506,92090.0,92089.0,0.0688959]
[1764874165442,0.066506,92090.0,92089.0,0.0698959]
[1764874165641,0.066506,92090.0,92089.0,0.001]
[1764874166035,0.0665069,92081.0,92080.0,0.00016288]
[1764874166243,0.06892692,92081.0,92080.0,0.00016288]
[1764874167052,0.57556692,92081.0,92080.0,0.00016288]
[1764874167234,0.57556692,92081.0,92080.0,0.05820288]
[1764874167440,0.57556692,92081.0,92080.0,0.00016288]
[1764874168245,0.0662878,92073.0,92072.0,0.0694279]
[1764874168448,0.06870782,92073.0,92072.0,0.05857]
[1764874168839,0.06870782,92073.0,92072.0,0.07494]
[1764874169042,0.06870782,92073.0,92072.0,0.05857]
[1764874169744,0.06870782,92073.0,92072.0,0.05957]
[1764874170537,0.06870782,92073.0,92072.0,0.06057]
[1764874171552,0.05785002,92073.0,92072.0,0.06057]
[1764874171845,0.0384971,92080.0,92079.0,0.0698771]
[1764874172045,0.01327712,92080.0,92079.0,0.0698771]
[1764874172252,0.05562,92090.0,92089.0,0.05902]
[1764874172434,0.0664758,92090.0,92089.0,0.05902]
[1764874173357,0.3716555,92093.0,92090.0,0.0108558]
[1764874173649,0.3716555,92093.0,92092.0,0.05902]
[1764874174844,0.4000655,92093.0,92092.0,0.05902]
[1764874175046,0.0392655,92093.0,92092.0,0.05902]
[1764874175358,0.00016288,92099.0,92098.0,0.05845]
[1764874175943,0.20449475,92120.0,92098.0,0.05845]
[1764874175944,0.05824852,92118.0,92117.0,0.05845]
[1764874176241,0.05649,92126.0,92125.0,0.05845]
[1764874176548,0.05891002,92126.0,92125.0,0.05845]
[1764874177750,0.03083002,92126.0,92125.0,0.05845]
[1764874177952,0.05891002,92126.0,92125.0,0.05845]
[1764874178548,0.3608,92128.0,92120.0,0.01666]
[1764874178549,0.0108509,92132.0,92127.0,0.05845]
[1764874178848,0.00016288,92135.0,92133.0,0.05845]
[1764874178849,0.3608,92134.0,92133.0,0.05845]
[1764874179150,0.41729,92134.0,92133.0,0.05845]
[1764874181342,0.41729,92134.0,92125.0,0.0693017]
[1764874181343,0.0673416,92126.0,92125.0,0.0693017]
[1764874181647,0.06976162,92126.0,92125.0,0.0693017]
[1764874182149,0.06976162,92126.0,92125.0,0.05845]
[1764874182356,0.06976162,92126.0,92125.0,0.02882]
[1764874182556,0.06976162,92126.0,92125.0,0.05845]
[1764874182752,0.0673416,92126.0,92125.0,0.05845]
[1764874182948,0.4281416,92126.0,92125.0,0.05845]
[1764874184760,0.0673421,92122.0,92121.0,0.0396721]
[1764874185058,0.06976212,92122.0,92121.0,0.0693021]
[1764874185257,0.06976212,92122.0,92121.0,0.0693022]
[1764874185662,0.05891002,92122.0,92121.0,0.0693022]
[1764874185865,0.4000617,92126.0,92125.0,0.05845]
[1764874186158,0.3608,92126.0,92125.0,0.05845]
[1764874186562,0.0108514,92128.0,92127.0,0.05845]
[1764874186759,0.0392614,92128.0,92127.0,0.05845]
[1764874187464,0.0673414,92128.0,92127.0,0.05845]
[1764874187855,0.0108514,92128.0,92127.0,0.05845]
[1764874189166,0.0393414,92128.0,92127.0,0.05845]
[1764874189552,0.3608,92134.0,92133.0,0.05496]
[1764874189753,0.3608,92146.0,92134.0,0.0658107]
[1764874189955,0.0108494,92145.0,92134.0,0.0658107]
[1764874190265,0.3608,92146.0,92134.0,0.0658107]
[1764874190266,0.0108497,92143.0,92134.0,0.0658107]
[1764874190464,0.0025829,92135.0,92134.0,0.0658107]
[1764874190664,0.00016288,92135.0,92134.0,0.0658107]
[1764874190862,0.0025829,92135.0,92134.0,0.0658107]
[1764874191268,0.00016288,92135.0,92134.0,0.0658107]
[1764874192561,0.3608,92146.0,92145.0,0.0658094]
[1764874193171,0.3716492,92146.0,92145.0,0.0658094]
[1764874193571,0.4001392,92146.0,92145.0,0.0658094]
[1764874193968,0.4031392,92146.0,92145.0,0.0658094]
[1764874194370,0.39229,92146.0,92145.0,0.0658094]
[1764874194966,0.3638,92146.0,92145.0,0.0658094]
[1764874195268,0.00016279,92155.0,92154.0,0.0658083]
[1764874195465,0.00016279,92155.0,92154.0,0.4266083]
[1764874195669,0.03107281,92155.0,92154.0,0.4266083]
[1764874195877,0.05721279,92155.0,92154.0,0.4266083]
[1764874196458,0.06221279,92155.0,92154.0,0.4266083]
[1764874196664,0.03365279,92155.0,92154.0,0.4266083]
[1764874197176,0.06221279,92155.0,92154.0,0.4266083]
[1764874197379,0.06321279,92155.0,92154.0,0.4266083]
[1764874197665,0.00616279,92155.0,92154.0,0.4266083]
[1764874198770,0.00027125,92166.0,92165.0,0.065807]
[1764874199168,0.05732125,92166.0,92165.0,0.065807]
[1764874199764,0.05732125,92166.0,92165.0,0.05496]
[1764874200067,0.05732125,92166.0,92156.0,0.00016279]
[1764874200068,0.0678979,92157.0,92156.0,0.05512279]
[1764874200269,0.07031792,92157.0,92156.0,0.05512279]
[1764874200771,0.05705,92157.0,92156.0,0.05512279]
[1764874200969,0.02849,92157.0,92156.0,0.05512279]
[1764874201172,0.00827125,92166.0,92165.0,0.065807]
[1764874201377,0.00827125,92166.0,92165.0,0.426607]
[1764874201567,0.010844,92191.0,92174.0,0.0658059]
[1764874201769,0.3716433,92197.0,92187.0,0.0658044]
[1764874201770,0.4286944,92188.0,92187.0,0.0658044]
[1764874202075,0.05705,92194.0,92193.0,0.05496]
[1764874202387,0.067894,92191.0,92190.0,0.02719]
[1764874202768,0.067894,92191.0,92190.0,0.05496]
[1764874204678,0.067894,92191.0,92190.0,0.07257]
[1764874204978,0.067894,92191.0,92190.0,0.07657]
[1764874205174,0.05705,92191.0,92190.0,0.05896]
[1764874206077,0.02849,92191.0,92190.0,0.05896]
[1764874206278,0.4267033,92197.0,92196.0,0.07354]
[1764874206591,0.0108423,92205.0,92196.0,0.07354]
[1764874206781,0.0387523,92205.0,92204.0,0.05593]
[1764874207279,0.0659023,92205.0,92204.0,0.05593]
[1764874207878,0.00027113,92206.0,92205.0,0.0843823]
[1764874208376,0.00269115,92206.0,92205.0,0.0843823]
[1764874208576,0.02818113,92206.0,92205.0,0.0843823]
[1764874208787,0.05533113,92206.0,92205.0,0.0667723]
[1764874209277,0.05533113,92206.0,92205.0,0.0843823]
[1764874209476,0.0827823,92205.0,92204.0,0.002]
[1764874209675,0.08520232,92205.0,92204.0,0.002]
[1764874209880,0.065905,92182.0,92167.0,0.3608]
[1764874210074,0.065905,92182.0,92172.0,0.0108461]
[1764874210475,0.065905,92182.0,92167.0,0.3608]
[1764874210674,0.065905,92182.0,92173.0,0.010846]
[1764874210876,0.065905,92182.0,92175.0,0.0108458]
[1764874211378,0.065905,92182.0,92171.0,0.0108463]
[1764874211579,0.065905,92182.0,92168.0,0.01070145]
[1764874211882,0.065905,92182.0,92181.0,0.0061627]
[1764874212782,0.065905,92182.0,92181.0,0.0001627]
[1764874212982,0.065905,92182.0,92181.0,0.0041627]
[1764874213681,0.065905,92182.0,92181.0,0.0600927]
[1764874214088,0.065905,92182.0,92181.0,0.0041627]
[1764874214270,0.065905,92182.0,92181.0,0.0001627]
[1764874214271,0.066905,92182.0,92181.0,0.0001627]
[1764874214584,0.066905,92182.0,92181.0,0.0041627]
[1764874214975,0.065905,92182.0,92181.0,0.0081627]
[1764874215671,0.065905,92182.0,92181.0,0.0061627]
[1764874215877,0.065905,92182.0,92181.0,0.0620927]
[1764874216485,0.065905,92182.0,92181.0,0.0610927]
[1764874217776,0.05506,92186.0,92185.0,0.0667747]
[1764874217981,0.0108443,92189.0,92188.0,0.010844]
[1764874218188,0.0387543,92189.0,92188.0,0.066774]
[1764874218384,0.0108439,92192.0,92191.0,0.0108439]
[1764874218579,0.0659039,92192.0,92191.0,0.05593]
[1764874220182,0.0659039,92192.0,92191.0,0.02766]
[1764874220887,0.0659039,92192.0,92191.0,0.03066]
[1764874221386,0.0659039,92192.0,92191.0,0.05893]
[1764874221793,0.0659039,92192.0,92191.0,0.05593]
[1764874221982,0.0659039,92192.0,92191.0,0.05993]
[1764874223382,0.05506,92192.0,92191.0,0.05993]
[1764874223691,0.3608,92202.0,92201.0,0.0667728]
[1764874223886,0.41586,92202.0,92201.0,0.0667728]
[1764874224288,0.02791,92202.0,92201.0,0.0667728]
[1764874224780,0.00027113,92206.0,92205.0,0.0843823]
[1764874224979,0.00269115,92206.0,92205.0,0.0843823]
[1764874225176,0.05533113,92206.0,92205.0,0.0667723]
[1764874225577,0.05533113,92206.0,92205.0,0.0843823]
[1764874225578,0.00027113,92206.0,92205.0,0.0843823]
[1764874225792,0.3608,92231.0,92224.0,0.0108401]
[1764874225793,0.05783468,92225.0,92224.0,0.0108401]
[1764874225987,0.02791,92227.0,92226.0,0.05593]
[1764874226188,0.38871,92231.0,92230.0,0.0843794]
[1764874226491,0.41586,92231.0,92230.0,0.05593]
[1764874226685,0.41586,92231.0,92230.0,0.02766]
[1764874227188,0.05506,92225.0,92224.0,0.06677]
[1764874227893,0.3658,92231.0,92217.0,0.3608]
[1764874227894,0.05506,92218.0,92217.0,0.4275709]
[1764874228081,0.0659008,92218.0,92217.0,0.4275709]
[1764874228281,0.0659008,92218.0,92217.0,0.41673]
[1764874228482,0.0659008,92218.0,92217.0,0.3608]
[1764874228682,0.0659008,92218.0,92217.0,0.38846]
[1764874228886,0.001,92225.0,92217.0,0.41673]
[1764874228887,0.01384,92225.0,92217.0,0.41673]
[1764874229101,0.003,92225.0,92224.0,0.0667701]
[1764874229294,0.03091,92225.0,92224.0,0.0667701]
[1764874229480,0.02891,92225.0,92224.0,0.0667701]
[1764874229793,0.05606,92225.0,92224.0,0.0667701]
[1764874230093,0.05506,92225.0,92224.0,0.0667701]
[1764874230597,0.0659004,92221.0,92220.0,0.0108405]
[1764874230790,0.06832042,92221.0,92220.0,0.0108405]
[1764874230997,0.05748002,92221.0,92220.0,0.0108405]
[1764874231181,0.0148401,92225.0,92220.0,0.0108405]
[1764874231182,0.004,92225.0,92220.0,0.0843805]
[1764874231381,0.03191,92225.0,92224.0,0.0667701]
[1764874231887,0.05506,92225.0,92224.0,0.0667701]
[1764874232298,0.05506,92218.0,92217.0,0.3608]
[1764874232491,0.05748002,92218.0,92217.0,0.3608]
[1764874232883,0.05748002,92218.0,92217.0,0.3716409]
[1764874233387,0.05748002,92218.0,92217.0,0.4275709]
[1764874233689,0.001,92218.0,92217.0,0.4275709]
[1764874233888,0.00442002,92218.0,92217.0,0.4275709]
[1764874234193,0.06288002,92218.0,92217.0,0.3608]
[1764874234401,0.06288002,92218.0,92215.0,0.0001627]
[1764874234402,0.05846,92216.0,92215.0,0.0001627]
[1764874234587,0.06088002,92216.0,92215.0,0.0001627]
[1764874235693,0.06188002,92216.0,92215.0,0.0001627]
[1764874237388,0.05846,92192.0,92191.0,0.5425]
[1764874237598,0.0693038,92192.0,92191.0,0.0571]
[1764874238100,0.05846,92192.0,92191.0,0.0571]
[1764874238596,0.05846,92192.0,92191.0,0.0581]
[1764874239399,0.0001624,92201.0,92191.0,0.0581]
[1764874239400,0.0001624,92201.0,92200.0,0.07371]
[1764874239584,0.0001624,92201.0,92200.0,0.43451]
[1764874239999,0.0176,92220.0,92200.0,0.43451]
[1764874240000,0.0693011,92216.0,92215.0,0.0679409]
[1764874240199,0.07172112,92216.0,92215.0,0.0679409]
[1764874241089,0.41926,92224.0,92223.0,0.0571]
[1764874241497,0.39015,92224.0,92223.0,0.0571]
[1764874241702,0.41926,92224.0,92223.0,0.0571]
[1764874242001,0.05846,92224.0,92223.0,0.0571]
[1764874242799,0.06046,92224.0,92223.0,0.0571]
[1764874243094,0.06246,92224.0,92223.0,0.0571]
[1764874245501,0.05846,92222.0,92221.0,0.0679402]
[1764874245703,0.06088002,92222.0,92221.0,0.0679402]
[1764874246704,0.06046,92222.0,92221.0,0.0679402]
[1764874247892,0.06146,92222.0,92221.0,0.0679402]
[1764874248805,0.003,92222.0,92221.0,0.0679402]
[1764874249807,0.05808,92222.0,92221.0,0.0679402]
[1764874252201,0.003,92222.0,92221.0,0.0679402]
[1764874253410,0.37851,92240.0,92236.0,0.0674687]
[1764874253411,0.1132722,92237.0,92236.0,0.0674687]
[1764874253707,0.05750002,92237.0,92236.0,0.0674687]
[1764874254408,0.05950002,92237.0,92236.0,0.07830462]
[1764874254605,0.002,92237.0,92236.0,0.07830462]
[1764874255309,0.0108367,92253.0,92245.0,0.0674676]
[1764874255696,0.0581922,92258.0,92245.0,0.0674676]
[1764874255899,0.0581922,92259.0,92245.0,0.0674676]
[1764874256206,0.0861822,92260.0,92259.0,0.01735]
[1764874256410,0.05508,92260.0,92259.0,0.07398]
[1764874256595,0.05508,92260.0,92259.0,0.05663]
[1764874258406,0.1132722,92271.0,92270.0,0.05663]
[1764874258704,0.06833452,92271.0,92270.0,0.05663]
[1764874259117,0.05508,92264.0,92263.0,0.4282655]
[1764874259306,0.0659149,92268.0,92267.0,0.067465]
[1764874259503,0.06833492,92268.0,92267.0,0.067465]
[1764874259912,0.12652712,92268.0,92267.0,0.067465]
[1764874260505,0.12752712,92268.0,92267.0,0.067465]
[1764874260706,0.11669222,92268.0,92267.0,0.067465]
[1764874261107,0.06050002,92268.0,92267.0,0.067465]
[1764874261302,0.003,92268.0,92267.0,0.067465]
[1764874261905,0.03099,92268.0,92267.0,0.067465]
[1764874262212,0.003,92268.0,92267.0,0.067465]
[1764874262404,0.010834,92276.0,92267.0,0.067465]
[1764874262609,0.065914,92276.0,92275.0,0.0674641]
[1764874263002,0.05508,92276.0,92275.0,0.0674641]
[1764874263804,0.05608,92276.0,92275.0,0.0674641]
[1764874264208,0.05808,92276.0,92275.0,0.0674641]
[1764874267516,0.003,92276.0,92275.0,0.0674641]
[1764874267917,0.03112,92276.0,92275.0,0.0674641]
[1764874268506,0.003,92276.0,92275.0,0.0674641]
[1764874268709,0.003,92276.0,92275.0,0.4282641]
[1764874269114,0.0582009,92286.0,92285.0,0.0666129]
[1764874270312,0.0283909,92286.0,92285.0,0.0666129]
[1764874270508,0.0687638,92277.0,92276.0,0.0001626]
[1764874270714,0.07118382,92277.0,92276.0,0.0001626]
[1764874271414,0.07118382,92277.0,92264.0,0.01636]
[1764874271415,0.010837,92254.0,92248.0,0.37716]
[1764874271615,0.068767,92254.0,92253.0,0.02771]
[1764874271815,0.05793,92245.0,92244.0,0.0666176]
[1764874272216,0.05793,92245.0,92240.0,0.01636]
[1764874272217,0.0687667,92253.0,92252.0,0.0666168]
[1764874272416,0.07118672,92253.0,92252.0,0.0666168]
[1764874272612,0.0687672,92248.0,92247.0,0.3993474]
[1764874272924,0.06035002,92248.0,92247.0,0.4274174]
[1764874273512,0.06035002,92248.0,92247.0,0.3608]
[1764874274416,0.06035002,92248.0,92247.0,0.38851]
[1764874274619,0.06035002,92248.0,92247.0,0.3618]
[1764874274821,0.06035002,92248.0,92247.0,0.38951]
[1764874275114,0.06035002,92248.0,92247.0,0.3668]
[1764874275315,0.05793,92257.0,92256.0,0.02771]
[1764874275520,0.05793,92257.0,92256.0,0.05578]
[1764874276021,0.05793,92248.0,92247.0,0.4354173]
[1764874276316,0.06035002,92248.0,92247.0,0.4344173]
[1764874276512,0.06035002,92248.0,92247.0,0.4354173]
[1764874277219,0.06035002,92248.0,92247.0,0.4284173]
[1764874277412,0.06035002,92248.0,92247.0,0.4354173]
[1764874277810,0.06035002,92248.0,92247.0,0.4284173]
[1764874278012,0.06035002,92248.0,92247.0,0.4354173]
[1764874279412,0.02812,92248.0,92247.0,0.4354173]
[1764874280118,0.05793,92248.0,92247.0,0.0746173]
[1764874280317,0.05793,92248.0,92247.0,0.008]
[1764874281121,0.05793,92248.0,92247.0,0.06378]
[1764874281715,0.02812,92253.0,92252.0,0.0666168]
[1764874282023,0.429566,92259.0,92258.0,0.0666161]
[1764874282716,0.3716347,92270.0,92261.0,0.0666157]
[1764874282717,0.02828228,92262.0,92261.0,0.0666157]
[1764874282919,0.0605123,92262.0,92261.0,0.0666157]
[1764874284715,0.05809228,92262.0,92261.0,0.0706157]
[1764874286115,0.00016228,92262.0,92261.0,0.0706157]
[1764874286320,0.0307023,92262.0,92261.0,0.0706157]
[1764874286718,0.02828228,92262.0,92261.0,0.0706157]
[1764874287628,0.05809228,92262.0,92261.0,0.0706157]
[1764874288525,0.00016228,92262.0,92261.0,0.0706157]
[1764874289226,0.3716337,92279.0,92261.0,0.0706157]
[1764874289423,0.3997537,92279.0,92278.0,0.0666137]
[1764874289629,0.3716337,92279.0,92278.0,0.0666137]
[1764874289832,0.3608,92279.0,92278.0,0.0666137]
[1764874290030,0.41873,92279.0,92278.0,0.0666137]
[1764874290225,0.41973,92279.0,92278.0,0.0385437]
[1764874290529,0.41973,92279.0,92267.0,0.5165149]
[1764874290530,0.05793,92270.0,92269.0,0.0667774]
[1764874290724,0.06035002,92270.0,92269.0,0.0559426]
[1764874291522,0.06035002,92270.0,92269.0,0.0001626]
[1764874291724,0.06035002,92270.0,92269.0,0.0021626]
[1764874292434,0.06035002,92270.0,92269.0,0.0579426]
[1764874292622,0.06135002,92270.0,92269.0,0.0579426]
[1764874295529,0.05893,92270.0,92269.0,0.0579426]
[1764874295732,0.02912,92270.0,92269.0,0.0579426]
[1764874298037,0.001,92270.0,92269.0,0.0579426]
[1764874301127,0.001,92270.0,92269.0,0.0687774]
[1764874302031,0.0576409,92286.0,92285.0,0.0671329]
[1764874303218,0.0576409,92286.0,92285.0,0.0108329]
[1764874303421,0.0108337,92279.0,92278.0,0.0381632]
[1764874303625,0.06941372,92279.0,92278.0,0.0381632]
[1764874304228,0.06941372,92279.0,92278.0,0.0661532]
[1764874304825,0.07041372,92279.0,92278.0,0.0661532]
[1764874305026,0.05958002,92279.0,92278.0,0.0661532]
[1764874305635,0.05958002,92279.0,92278.0,0.05532]
[1764874305839,0.0669947,92270.0,92269.0,0.0274926]
[1764874306022,0.06941472,92270.0,92269.0,0.0001626]
[1764874307130,0.07041472,92270.0,92269.0,0.0021626]
[1764874308937,0.07041472,92270.0,92269.0,0.0294926]
[1764874309341,0.07041472,92270.0,92269.0,0.0021626]
[1764874311834,0.0669955,92263.0,92262.0,0.0108356]
[1764874312138,0.06941552,92263.0,92262.0,0.0108356]
[1764874312736,0.06941552,92263.0,92262.0,0.0381656]
[1764874312945,0.0108363,92260.0,92259.0,0.0108359]
[1764874313137,0.0669963,92260.0,92259.0,0.0108359]
[1764874313536,0.0669963,92260.0,92259.0,0.0381659]
[1764874314243,0.0669963,92260.0,92259.0,0.0421659]
[1764874317544,0.0669963,92260.0,92259.0,0.0701559]
[1764874317745,0.0669963,92260.0,92259.0,0.0148359]
[1764874317942,0.0669963,92260.0,92259.0,0.0701559]
[1764874319240,0.0836063,92260.0,92259.0,0.03133]
[1764874319447,0.4444063,92260.0,92259.0,0.004]
[1764874319648,0.0669965,92254.0,92253.0,0.0001626]
[1764874319850,0.0669965,92254.0,92225.0,0.11379105]
[1764874319851,0.0669998,92226.0,92225.0,0.11379105]
[1764874320049,0.0669998,92226.0,92225.0,0.05532]
[1764874320550,0.0669998,92226.0,92218.0,0.0162]
[1764874320551,0.0670007,92219.0,92218.0,0.05532]
[1764874320742,0.06942072,92219.0,92218.0,0.05532]
[1764874322443,0.05858002,92219.0,92218.0,0.05632]
[1764874322641,0.05616,92219.0,92214.0,0.3608]
[1764874322840,0.05616,92219.0,92208.0,0.00437]
[1764874322841,0.0670032,92197.0,92195.0,2e-08]
[1764874323143,0.00551,92208.0,92179.0,0.01107242]
[1764874323144,0.0670042,92189.0,92188.0,0.02741635]
[1764874323347,0.0389337,92194.0,92193.0,0.05532]
[1764874323550,0.0108433,92197.0,92194.0,0.0108435]
[1764874323744,0.0108433,92197.0,92193.0,0.05532]
[1764874323745,0.7216,92197.0,92196.0,0.07152]
[1764874324140,0.78742,92197.0,92196.0,0.07152]
[1764874324746,0.7216,92197.0,92196.0,0.07152]
[1764874325745,0.7216,92197.0,92196.0,0.07252]
[1764874325951,0.7216,92197.0,92196.0,0.07552]
[1764874327845,0.3608,92197.0,92196.0,0.07552]
[1764874335763,0.0295327,92206.0,92205.0,0.06664]
[1764874335961,0.0295327,92206.0,92205.0,0.0774823]
[1764874335962,0.00258272,92206.0,92205.0,0.0774823]
[1764874336152,0.0001627,92206.0,92205.0,0.0774823]
[1764874336353,0.00258272,92206.0,92205.0,0.0774823]
[1764874336652,0.0001627,92206.0,92205.0,0.0774823]
[1764874336850,0.00258272,92206.0,92205.0,0.0774823]
[1764874337263,0.0011627,92206.0,92205.0,0.0774823]
[1764874337562,0.0669827,92206.0,92205.0,0.0774823]
[1764874337765,0.4277827,92206.0,92205.0,0.0774823]
[1764874338269,0.06582,92198.0,92188.0,8.635e-05]
[1764874338565,0.42904002,92189.0,92188.0,8.635e-05]
[1764874340375,0.42904002,92189.0,92188.0,0.00308635]
[1764874340667,0.42904002,92189.0,92188.0,0.00408635]
[1764874341366,0.42904002,92189.0,92188.0,0.08157065]
[1764874344467,0.39017,92189.0,92188.0,0.08157065]
[1764874344670,0.3608,92198.0,92197.0,0.0774832]
[1764874344975,0.0659827,92206.0,92205.0,0.0774823]
[1764874345669,0.0659827,92206.0,92205.0,0.0997423]
[1764874345975,0.06582,92189.0,92188.0,0.00408635]
[1764874346171,0.78742,92189.0,92188.0,0.00108635]
[1764874346771,0.78742,92189.0,92188.0,8.635e-05]
[1764874346970,0.81031185,92189.0,92188.0,8.635e-05]
[1764874347364,0.81031185,92189.0,92188.0,0.00308635]
[1764874347569,0.81031185,92189.0,92188.0,0.00408635]
[1764874348568,0.81031185,92189.0,92188.0,0.07072635]
[1764874348768,0.81031185,92189.0,92188.0,0.00408635]
[1764874352168,0.44951185,92189.0,92188.0,0.00408635]
[1764874358285,0.0814468,92167.0,92160.0,0.02226]
[1764874358586,0.46580013,92167.0,92159.0,0.0108476]
[1764874358787,0.46580013,92167.0,92161.0,0.0108474]
[1764874359083,0.46580013,92167.0,92165.0,0.010847]
[1764874359289,0.46592385,92167.0,92165.0,0.010847]
[1764874360389,0.46592385,92167.0,92162.0,0.0108473]
[1764874360886,0.46592385,92167.0,92159.0,0.02176916]
[1764874361292,0.0706,92145.0,92127.0,0.0108514]
[1764874361481,0.3608,92145.0,92138.0,0.01070674]
[1764874361676,8.394e-05,92144.0,92143.0,0.07061]
[1764874362082,0.0108482,92155.0,92154.0,0.07061]
[1764874362280,0.0791182,92155.0,92154.0,0.07061]
[1764874362481,0.4399182,92155.0,92154.0,0.07061]
[1764874363089,0.42907,92155.0,92154.0,0.07061]
[1764874363291,0.42907,92155.0,92154.0,0.07161]
[1764874364784,0.42907,92155.0,92154.0,0.07261]
[1764874365091,0.4399182,92155.0,92154.0,0.002]
[1764874366190,0.4399182,92155.0,92154.0,0.03634]
[1764874366390,0.42907,92155.0,92154.0,0.03634]
[1764874368991,0.42907,92155.0,92154.0,0.06952]
[1764874370194,0.42907,92155.0,92154.0,0.002]
[1764874370994,0.42907,92155.0,92154.0,0.06952]
[1764874374299,0.06827,92155.0,92154.0,0.06952]
[1764874374890,0.0763492,92146.0,92145.0,0.00016279]
[1764874375095,0.46312117,92146.0,92145.0,0.00016279]
[1764874375296,0.0763515,92127.0,92126.0,0.00027137]
[1764874375493,0.4263,92127.0,92126.0,0.06779137]
[1764874375894,0.4263,92127.0,92126.0,0.07869076]
[1764874376095,0.4263,92127.0,92126.0,0.03461137]
[1764874376290,0.4263,92127.0,92126.0,0.00027137]
[1764874377204,0.4263,92127.0,92126.0,0.06779137]
[1764874377796,0.4263,92127.0,92126.0,0.06979137]
[1764874377997,0.3608,92127.0,92126.0,0.06979137]
[1764874378198,0.39406279,92136.0,92135.0,0.06752]
[1764874378901,0.42646279,92136.0,92135.0,0.0783705]
[1764874379306,0.42646279,92136.0,92135.0,0.0793705]
[1764874379502,0.00016279,92136.0,92135.0,0.0793705]
[1764874380299,0.00016279,92136.0,92135.0,0.0803705]
[1764874381704,0.3608,92146.0,92145.0,0.0783694]
[1764874382700,0.3939,92146.0,92145.0,0.0783694]
[1764874382900,0.0675,92146.0,92145.0,0.0783694]
[1764874383903,0.0675,92146.0,92145.0,0.0451894]
[1764874384106,0.0675,92146.0,92145.0,0.0461894]
[1764874384507,0.0675,92146.0,92145.0,0.0791294]
[1764874384708,0.0331,92146.0,92145.0,0.0791294]
[1764874386104,0.0331,92146.0,92145.0,0.0801294]
[1764874386713,0.0636,92146.0,92145.0,0.0801294]
[1764874387608,0.0636,92146.0,92145.0,0.0791294]
[1764874387796,0.0636,92146.0,92145.0,0.0801294]
[1764874388305,0.0636,92146.0,92145.0,0.0791294]
[1764874388507,0.0636,92146.0,92145.0,0.0118494]
[1764874389405,0.0636,92146.0,92145.0,0.0108494]
[1764874389605,0.0636,92146.0,92145.0,0.0118494]
[1764874390001,0.08714174,92146.0,92145.0,0.0118494]
[1764874390811,0.08714174,92146.0,92145.0,0.001]
[1764874391004,0.08714174,92146.0,92145.0,0.0118494]
[1764874392203,0.08714174,92146.0,92145.0,0.001]
[1764874392607,0.061,92137.0,92136.0,0.00016279]
[1764874392804,0.44776176,92137.0,92136.0,0.00016279]
[1764874393110,0.45861206,92137.0,92136.0,0.00016279]
[1764874393708,0.45861206,92137.0,92136.0,0.00116279]
[1764874393908,0.3608,92157.0,92154.0,0.0771583]
[1764874394101,0.4218,92165.0,92164.0,0.0771571]
[1764874394313,0.061,92165.0,92164.0,0.0771571]
[1764874394702,0.3608,92177.0,92176.0,0.0108457]
[1764874394905,0.0718459,92175.0,92174.0,0.06631]
[1764874395112,0.07426592,92175.0,92174.0,0.06631]
[1764874395314,0.061,92173.0,92172.0,0.0108461]
[1764874395507,0.06342002,92173.0,92172.0,0.0108461]
[1764874395710,0.061,92166.0,92165.0,0.00016279]
[1764874395904,0.06342002,92166.0,92165.0,0.00016279]
[1764874396100,0.06342002,92166.0,92165.0,0.06647279]
[1764874396304,0.3608,92169.0,92168.0,0.06631]
[1764874396506,0.3913,92169.0,92168.0,0.06631]
[1764874397612,0.4218,92169.0,92168.0,0.06631]
[1764874398710,0.3608,92169.0,92168.0,0.06631]
[1764874399303,0.3628,92169.0,92168.0,0.06631]
[1764874400102,0.002,92169.0,92168.0,0.06631]
[1764874407912,0.002,92169.0,92168.0,0.08523]
[1764874410816,0.063,92169.0,92168.0,0.08523]
[1764874411118,0.063,92169.0,92165.0,0.00016279]
[1764874411119,0.061,92166.0,92165.0,0.00016279]
[1764874411318,0.06342002,92166.0,92165.0,0.00016279]
[1764874412725,0.08653778,92166.0,92165.0,0.00016279]
[1764874413221,0.08653778,92166.0,92165.0,0.06647279]
[1764874413427,0.03292002,92166.0,92165.0,0.06647279]
[1764874413621,0.06542002,92166.0,92165.0,0.06647279]
[1764874416734,0.08855187,92166.0,92165.0,0.00016279]
[1764874423835,0.08855187,92166.0,92147.0,0.0741491]
[1764874423836,0.02806,92148.0,92147.0,0.0741491]
[1764874424032,0.38886,92148.0,92147.0,0.0741491]
[1764874424336,0.399709,92148.0,92147.0,0.0741491]
[1764874424637,0.38886,92148.0,92147.0,0.0741491]
[1764874425029,0.38886,92148.0,92147.0,0.0751491]
[1764874426227,0.38886,92148.0,92147.0,0.0781491]
[1764874427135,0.38886,92148.0,92147.0,0.0751491]
[1764874427323,0.38886,92148.0,92147.0,0.0761491]
[1764874431039,0.394289,92148.0,92147.0,0.002]
[1764874431343,0.0301501,92139.0,92138.0,0.00016279]
[1764874431535,0.39337012,92139.0,92138.0,0.00016279]
[1764874432738,0.39337012,92139.0,92138.0,0.03008279]
[1764874433041,0.39337012,92139.0,92138.0,0.00416279]
[1764874433444,0.39337012,92139.0,92138.0,0.07486299]
[1764874433639,0.39337012,92139.0,92126.0,0.00027137]
[1764874433640,0.0301515,92127.0,92126.0,0.00027137]
[1764874433938,0.3909515,92127.0,92126.0,0.00027137]
[1764874434544,0.0301525,92118.0,92104.0,0.01727]
[1764874434740,0.39337252,92118.0,92108.0,0.01150879]
[1764874435040,0.39337252,92118.0,92108.0,0.00010864]
[1764874435234,0.39337252,92118.0,92112.0,0.0108532]
[1764874435944,0.39337252,92118.0,92116.0,0.0108528]
[1764874436645,0.39437252,92118.0,92117.0,0.01308259]
[1764874436944,0.39437252,92118.0,92117.0,0.01708259]
[1764874437246,0.39737252,92118.0,92117.0,0.00408259]
[1764874438745,0.39737252,92118.0,92117.0,8.259e-05]
[1764874439357,0.0301536,92109.0,92108.0,0.00010864]
[1764874439656,0.75417362,92109.0,92108.0,0.00010864]
[1764874440457,0.75417362,92109.0,92108.0,0.00110864]
[1764874442058,0.75617362,92109.0,92108.0,0.00110864]
[1764874443658,0.75617362,92109.0,92108.0,0.06095864]